Cogmind - Beta 17.1 @@@ ROGUE MODE // 2026.09.01 @ 11:48:15 Player: cd4337 Result: Destroyed by G-34 Mercenary with Small Laser Performance ------------- Evolutions (1) 500 Regions Visited (3) 600 Robots Destroyed (30) 150 Value Destroyed (669) 669 Prototype IDs (1) 20 Alien Tech Used (0) 0 Bonus (0) 0 TOTAL SCORE: 1939 Bonus ------- None Cogmind --------- Core Integrity 0/400 Matter 101/300 Energy 280/280 System Corruption 0% Temperature Cool (6) Movement Core (100) Ox1 Location -9/Mines Parts ------- > --- POWER (1) -------- Cooled Ion Engine > --- PROPULSION (2) --- (None) > --- UTILITY (4) ------ Heat Sink Small Storage Unit Weight Redist. System Machine Analyzer > --- WEAPON (2) ------- Small Laser Assault Rifle > --- INVENTORY (8) ---- Light Ion Engine Light Ion Engine Improved Ion Engine Heavy Ion Engine Light Nuclear Core Aluminum Leg Peak State ------------ > --- POWER ------------ Cooled Ion Engine > --- PROPULSION ------- Advanced Treads Advanced Treads > --- UTILITY ---------- Heat Sink Small Storage Unit Weight Redist. System Machine Analyzer > --- WEAPON ----------- Heavy Assault Rifle Autogun > --- INVENTORY -------- Light Ion Engine Light Ion Engine Improved Ion Engine Heavy Ion Engine Light Nuclear Core Aluminum Leg Small Laser Assault Rifle [Rating: 21] Favorites ----------- Power Cooled Ion Engine Engine Cooled Ion Engine Propulsion Wheel Treads Advanced Treads Wheel Wheel Utility Small Storage Unit Device Heat Sink Storage Small Storage Unit Processor Machine Analyzer Weapon Light Assault Rifle Energy Gun Medium Laser Ballistic Gun Light Assault Rifle Build | -11 -10 -9 -9 ------- Run | Yrd Mat Mat Min Slots Evolved 2 | . . 2 . Power . | . . . . Propulsion . | . . . . Utility 2 | . . 2 . Weapon . | . . . . Parts Attached 23 | 6 6 10 1 Power 4 | 1 2 1 . Engine 4 | 1 2 1 . Core . | . . . . Reactor . | . . . . Propulsion 6 | 2 2 2 . Treads 2 | . . 2 . Leg . | . . . . Wheel 4 | 2 2 . . Hover . | . . . . Flight . | . . . . Utility 6 | 1 1 4 . Device 4 | . 1 3 . Storage 1 | 1 . . . Processor 1 | . . 1 . Hackware . | . . . . Protection . | . . . . Artifact . | . . . . Weapon 7 | 2 1 3 1 Energy Gun 2 | 1 . . 1 Energy Cannon . | . . . . Ballistic Gun 5 | 1 1 3 . Ballistic Cannon . | . . . . Launcher . | . . . . Special Weapon . | . . . . Impact Weapon . | . . . . Slashing Weapon . | . . . . Piercing Weapon . | . . . . Special Melee Weapon . | . . . . Unidentified Prototypes 1 | . . 1 . Parts Lost 10 | . 4 6 . Power 1 | . 1 . . Propulsion 4 | . 2 2 . Utility 2 | . . 2 . Weapon 3 | . 1 2 . Highest Loss Streak 4 | . 4 4 . To Critical Strikes . | . . . . Average Backups 5 | 2 3 7 6 Power 3 | 1 1 4 5 Propulsion . | . . . 1 Utility . | . 1 . . Weapon 1 | . 1 2 . Tool/Special . | . . . . Unused Backups 4 | . . . 4 Power 3 | . . . 3 Propulsion 1 | . . . 1 Utility . | . . . . Weapon . | . . . . Tool/Special . | . . . . Average Slot Usage (%) 85 | . 88 85 77 Engine 11 | . 13 11 11 Treads 4 | . . 7 . Wheel 12 | . 25 5 . Device 17 | . 5 24 22 Storage 12 | . 14 11 11 Processor 2 | . . 3 11 Energy Gun 7 | . 14 3 11 Ballistic Gun 16 | . 14 18 11 Peak Build Rating 21 | 6 8 21 13 Average Rating 11 | 3 6 14 13 On Entrance 6 | . 6 8 12 Avg Prop Armor Cover (%) . | . . . . Naked Turns . | . . . . Heaviest Build 20 | 13 16 20 17 Greatest Support 50 | 26 26 50 9 Greatest Overweight (x) 3 | . 3 1 1 Average Overweight (x) . | . . . 1 Largest Inventory Capacity 8 | 8 8 8 8 Average Capacity 7 | 7 8 8 8 Most Carried 8 | 5 6 8 6 Average Carried 6 | 2 3 7 6 Final Capacity 8 | 8 8 8 8 Final Carried 7 | 2 6 7 6 Class Distribution -------------------- 100% | Mutant Dominant Class ---------------- Mutant | -10/Materials Mutant | -9/Materials Mutant | -9/Mines Resources | -11 -10 -9 -9 ----------- Run | Yrd Mat Mat Min Matter Collected 561 | 48 224 289 . Remotely . | . . . . Salvage Created 915 | . 224 650 41 Parts 59 | . 18 39 2 Haulers Intercepted 2 | . . 2 . Recyclers Shooed . | . . . . Parts Field Recycled . | . . . . Retrieved Matter . | . . . . Parts Self-Destructed . | . . . . Prevented . | . . . . Parts Restored . | . . . . Kills | -11 -10 -9 -9 ------- Run | Yrd Mat Mat Min Combat Hostiles Destroyed 21 | . 4 16 1 Guns 21 | . 4 16 1 Classes Destroyed 8 | . 4 4 . Worker 2 | . 2 . . Hauler 2 | . . 2 . Operator 1 | . 1 . . Watcher 4 | . 1 3 . Swarmer 8 | . . 8 . Grunt 10 | . 4 5 1 Duelist 1 | . . 1 . Sentry 2 | . . 2 . Best Kill Streak 8 | . 5 8 1 Combat Bots Only 4 | . 3 4 1 Max Kills in Single Turn 2 | . 1 2 1 Gunslinging 1 | . . 1 . Exploded . | . . . . Melee . | . . . . Uniques/NPCs Destroyed . | . . . . Combat | -11 -10 -9 -9 -------- Run | Yrd Mat Mat Min Hostile Shots Fired 196 | . 43 140 13 Missed 56 | . 15 37 4 Hits 140 | . 28 103 9 Melee 9 | . . 9 . Projectile 131 | . 28 94 9 Critical Strikes 4 | . 1 3 . Damage Taken 1729 | . 327 1281 121 Core 452 | . 44 354 54 Absorbed by Shields . | . . . . Core Remaining (%) 91 | 100 82 . . Volleys Fired 112 | . 25 79 8 Largest 2 | . 2 2 2 Hottest 70 | . 70 70 60 Shots Fired 220 | . 49 155 16 Gun 220 | . 49 155 16 Cannon . | . . . . Launcher . | . . . . Special . | . . . . Kinetic 159 | . 24 127 8 Thermal 61 | . 25 28 8 Explosive . | . . . . Electromagnetic . | . . . . Robot Hit Streak 14 | . 6 14 8 Robot Miss Streak 9 | . 6 9 2 Penetration Max . | . . . . Secondary Targets 3 | . 1 2 . Max Gunslinging Chain 1 | . 1 1 . Shots Hit Robots 139 | . 27 99 13 Core Hits 53 | . 15 34 4 Critical Kills . | . . . . Critical Parts Destroyed . | . . . . Critical Strikes 4 | . 2 2 . Burn 4 | . 2 2 . Melee Attacks . | . . . . Impact . | . . . . Slashing . | . . . . Piercing . | . . . . Sneak Attacks . | . . . . Combat Hostiles . | . . . . Follow-up Attacks . | . . . . Damage Inflicted 1781 | . 317 1309 155 Guns 1781 | . 317 1309 155 Cannons . | . . . . Explosions . | . . . . Melee . | . . . . Ramming . | . . . . Kinetic 1273 | . 92 1092 89 Thermal 508 | . 225 217 66 Explosive . | . . . . Electromagnetic . | . . . . Impact . | . . . . Slashing . | . . . . Piercing . | . . . . Highest Corruption 2 | . 2 . . Average Corruption 2 | . 2 . . Corruption Purged . | . . . . Corruption Blocked . | . . . . Effects 3 | . 3 . . Message Errors 3 | . 3 . . Overload Shots . | . . . . Overflow Damage . | . . . . Projectiles . | . . . . Explosions . | . . . . Melee . | . . . . Knockbacks . | . . . . Impact . | . . . . Kinetic . | . . . . Secondary . | . . . . Self-Inflicted Damage . | . . . . Shots . | . . . . Rammed . | . . . . Targets Rammed . | . . . . Kicked . | . . . . Crushed . | . . . . Highest Temperature 323 | . 323 24 . Average Temperature 100 | . 164 7 . Received Heat Transfer 669 | . 201 396 72 Effects 2 | . 2 . . Energy Bleed 1 | . 1 . . Matter Decay 1 | . 1 . . Siege Activations . | . . . . Martial Activations . | . . . . Shielding Activations . | . . . . Robots Disrupted . | . . . . Combat Hostiles . | . . . . Robots Corrupted . | . . . . Combat Hostiles . | . . . . Parts Fried . | . . . . Impact Corruptions . | . . . . Robots Melted . | . . . . Combat Hostiles . | . . . . Parts Melted 5 | . 1 3 1 Heat Transferred 1741 | . 814 777 150 Parts Sabotaged . | . . . . Parts Stolen . | . . . . Parts Stripped . | . . . . Power Chain Reactions . | . . . . Alert | -11 -10 -9 -9 ------- Run | Yrd Mat Mat Min Maximum Alert Level . | . . . . Low Security (%) 100 | 100 100 100 100 Level 1 . | . . . . Level 2 . | . . . . Level 3 . | . . . . Level 4 . | . . . . Level 5 . | . . . . High Security . | . . . . Max Security . | . . . . Peak Influence 90 | . 40 90 30 Initial 23 | . . . 23 Average 18 | . 7 25 14 Influence Increases 581 | . 146 405 30 Destroy 0b10 Robot/C 420 | . 80 320 20 Destroy 0b10 Robot/NC 45 | . 20 25 . Destroy Leader 102 | . 32 60 10 Successful Hack 14 | . 14 . . Influence Decreases 551 | . 146 345 60 Entered New Map 37 | . . . 37 Time Decay 434 | . 116 295 23 Lost Part 80 | . 30 50 . Squads Dispatched 5 | . 3 2 . Investigation 1 | . 1 . . Extermination . | . . . . Reinforcement 4 | . 2 2 . Assault . | . . . . Garrison . | . . . . Intercept . | . . . . Searches Triggered . | . . . . Construction Impeded . | . . . . Haulers Reinforced . | . . . . Active Scanning Responses . | . . . . Cargo Convoy Interrupts . | . . . . Stealth | -11 -10 -9 -9 --------- Run | Yrd Mat Mat Min Distress Signals 4 | . . 4 . Communications Jammed . | . . . . Distress Signals . | . . . . Times Spotted 42 | . 11 29 2 Peak Tracking Total 5 | . 5 5 2 Tactical Retreats . | . . . . Traps | -11 -10 -9 -9 ------- Run | Yrd Mat Mat Min Traps Triggered 1 | . 1 . . Indirectly . | . . . . Trap Hack Attempts . | . . . . Triggered . | . . . . Disarmed . | . . . . Reprogrammed . | . . . . Reused . | . . . . Traps Extracted . | . . . . Installed . | . . . . Triggered . | . . . . Machines | -11 -10 -9 -9 ---------- Run | Yrd Mat Mat Min Machines Disabled . | . . . . Max in Single Turn . | . . . . Machines Repaired . | . . . . Machines Dismantled . | . . . . Machines Sabotaged . | . . . . Overloaded Fab Kills . | . . . . Hacking | -11 -10 -9 -9 --------- Run | Yrd Mat Mat Min Machines Accessed 14 | . 7 7 . Terminals 11 | . 6 5 . Fabricators . | . . . . Repair Stations 1 | . . 1 . Recycling Units 1 | . 1 . . Scanalyzers 1 | . . 1 . Garrison Access . | . . . . Total Hacks 27 | . 16 11 . Successful 6 | . 4 2 . Failed 21 | . 12 9 . Catastrophic 7 | . 1 6 . Database Lockouts . | . . . . Manual 17 | . 9 8 . Terminals 23 | . 15 8 . Fabricators . | . . . . Repair Stations 1 | . . 1 . Recycling Units 1 | . 1 . . Scanalyzers 2 | . . 2 . Garrison Access . | . . . . Terminal Hacks 3 | . 3 . . Level Access Points 1 | . 1 . . Recall Investigation 1 | . 1 . . Zone Layout 1 | . 1 . . Fabricator Hacks . | . . . . Repair Station Hacks . | . . . . Recycling Unit Hacks 1 | . 1 . . Report Inventory 1 | . 1 . . Scanalyzer 2 | . . 2 . Retrieve Study 2 | . . 2 . Garrison Access Hacks . | . . . . Unauthorized Hacks . | . . . . Terminals . | . . . . Fabricators . | . . . . Repair Stations . | . . . . Recycling Units . | . . . . Scanalyzers . | . . . . Garrison Access . | . . . . Data Cores Recovered 1 | . 1 . . Used . | . . . . Hacking Detections 14 | . 7 7 . Full Trace Events 1 | . 1 . . Feedback Events . | . . . . Feedback Blocked . | . . . . Robot Schematics Acquired . | . . . . Robots Built . | . . . . Authchips . | . . . . Time . | . . . . Total Robot Build Rating . | . . . . Part Schematics Acquired . | . . . . Parts Built . | . . . . Authchips . | . . . . Time . | . . . . Total Part Build Rating . | . . . . Part Studies Acquired 1 | . . 1 . Parts Repaired . | . . . . Time . | . . . . Parts Recycled . | . . . . Recycled Matter . | . . . . Retrieved Matter . | . . . . Retrieved Components . | . . . . Parts Scanalyzed . | . . . . Part Schematics Acquired . | . . . . Parts Damaged . | . . . . Bothacking | -11 -10 -9 -9 ------------ Run | Yrd Mat Mat Min Used RIF Installer . | . . . . Robots Hacked . | . . . . Non-combat . | . . . . Combat . | . . . . Robot Hacks Applied . | . . . . Relay Couplers Released . | . . . . Fabnet Peak Effective % . | . . . . Robots Rewired . | . . . . Allies Hacked . | . . . . Hacks Repelled . | . . . . Allies | -11 -10 -9 -9 -------- Run | Yrd Mat Mat Min Total Allies . | . . . . Largest Group . | . . . . Highest-Rated Group . | . . . . Highest-Rated Ally . | . . . . Total Orders . | . . . . Ally Attacks . | . . . . Total Damage . | . . . . Kills . | . . . . Allies Corrupted . | . . . . Allies Melted . | . . . . Intel | -11 -10 -9 -9 ------- Run | Yrd Mat Mat Min Active Infowar (turns) 678 | . . 610 68 Seismic 261 | . . 261 . Machine Analysis 417 | . . 349 68 Robot Analysis Total . | . . . . Derelict Logs Recovered 1 | . . . 1 Drone Launches . | . . . . Drone Recoveries . | . . . . Exploration | -11 -10 -9 -9 ------------- Run | Yrd Mat Mat Min Turns Passed 1652 | 46 560 978 68 Spaces Moved 991 | 36 419 509 27 Core 297 | 8 9 253 27 Treads 118 | . . 118 . Legs . | . . . . Wheels 576 | 28 410 138 . Hover . | . . . . Flight . | . . . . Fastest Speed 50 | 50 80 80 100 Average Speed 96 | 81 87 105 100 Slowest Speed 200 | 90 200 145 100 Overloaded Moves . | . . . . Propulsion Burnouts . | . . . . Robots Hopped . | . . . . Potential Cave-ins . | . . . . Cave-ins Triggered . | . . . . Exploration Rate (%) 36 | 3 81 51 11 Regions Visited 3 Branch Regions 1 Pre-discovered Areas . | . . . . Known Exits Taken 1 | . 1 . . Unknown Exits Taken 2 | 1 . 1 . Scrap Searched . | . . . . Spaces Dug . | . . . . Terrain Destroyed . | . . . . Melee . | . . . . Projectile . | . . . . AOE . | . . . . Terrain Rammed . | . . . . Walls Destroyed . | . . . . Machines Disabled . | . . . . Actions | -11 -10 -9 -9 --------- Run | Yrd Mat Mat Min Total 1489 | 52 568 816 53 Wait 343 | 3 110 213 17 Move 988 | 35 418 508 27 Hop . | . . . . Pick Up 22 | 8 9 5 . Fast Attach 4 | . . 4 . Attach 16 | 6 5 4 1 Detach . | . . . . Swap 3 | . 1 2 . Drop 1 | . . 1 . Fire 112 | . 25 79 8 Melee . | . . . . Ram . | . . . . Kick . | . . . . Crush . | . . . . Escape Stasis . | . . . . Rewire . | . . . . Trap . | . . . . Miscellaneous . | . . . . Route ------- -11/Scrapyard -10/Materials (discovered 5 exits: *Mat x3 / [*Min x2]) -9/Materials (discovered 2 exits: [*Mat] / [*Min]) -9/Mines History --------- Turn | Location | Event 16 | -11/Scrapyard | Discovered new exit (range 15) 47 | -11/Scrapyard | Entered Materials 57 | -10/Materials | Identified exit to Materials 95 | -10/Materials | Discovered new exit (range 12) 318 | -10/Materials | Build established: Mutant 356 | -10/Materials | Lost 4 parts (1p2n1w) 440 | -10/Materials | Discovered new exit (range 11) 607 | -10/Materials | Entered another Materials area 607 | -9/Materials | Evolved 2 slots: Utility x2 917 | -9/Materials | Lost 4 parts (2n1u1w) 1050 | -9/Materials | Discovered new exit (range 12) 1495 | -9/Materials | Discovered new exit (range 13) 1544 | -9/Materials | Core integrity fell below 50% 1576 | -9/Materials | Core integrity fell below 20% 1585 | -9/Materials | Entered Mines 1653 | -9/Mines | Destroyed by G-34 Mercenary with Small Laser Last Messages --------------- 01567_ K-01 Serf cleans the Matter Pump. 01567_ R-06 Scavenger collects Adv. Treads. 01571_ K-01 Serf collects debris. 01571_ K-01 Serf cleans the Matter Pump. 01571_ R-06 Scavenger collects Core Shielding. 01573_ G-34 Mercenary destroyed. 01574_ K-01 Serf collects debris. 01575_ Autogun+ severed. 01575_ R-06 Scavenger collects Autogun+. 01578_ K-01 Serf collects debris. LOCATION=UNKNOWN GOAL=ESCAPE 01587_ K-01 Serf collects debris. 01593_ K-01 Serf cleans the Core Extractor. 01603_ Acquired derelict log, extracted data. Data stored: Storage entrances (x1). 01610_ T-07 Excavator is excavating. 01645_ Lgt. Nuclear Core melted. 01645_ G-47 Trooper destroyed. 01648_ T-07 Excavator is excavating. Map ----- +----------------------------------------------------+ | | | | | | | | | | | | | | | | | | | | | | | | | | | ??????????????????????????????????????????? | | ??????????????????????????????????????????? | | ???????????????????????###????????????????? | | ??????????????????????? ????????????????? | | ??????????????????????? ????????????????? | | ??????????????????????? ????????????????? | | ??????????????????????? ????????????????? | | ???????????????????????# #????????????????? | | ???????????????????????# #????????????????? | | ???????????????????????# #????????????????? | | ???????????????????????#=#????????????????? | | ???????????????????????#g###??????????????? | | ??????????????????????##=@ ##?????????????? | | ?????????????????????## #?????????????? | | ?????????????????????# """ ######????????? | | ?????????????????????# """ #????????? | | ?????????????????? """ #????????? | | ?????????????????? ### #????????? | | ???????????????? ##?# ###??????? | | ????????????????? ##??# #??????? | | ????????????????#### ##???# ??????? | | ???????????????????######?????# ## ?????? | | ??????????????????????????????# #?## ?????? | | ???????????????????#######????# #?????????? | | ???????????????????# #??### #?????????? | | ???????????????????#""" #??# #?????????? | | ???????????????????#""" #### ###?????????? | | ???????????????????#""" #???????????? | | ???????????????????# ######???????????? | | ???????????????????# #????????????????? | | ???????????????????## ###????????????????? | | ??????????????????? #??????????????????? | | ????????????????? #??????????????????? | | ???????????????? ######??????????????????? | | ???????????????# ?????????????????????????? | | ???????????????#??????????????????????????? | | ??????????????????????????????????????????? | +----------------------------------------------------+ Best States ------------- Heat Dissipation 38 Energy Generation 14 Energy Capacity 280 Matter Stores 300 Matter Capacity 300 Sight Range 16 Terrain Scan Density 10 Additional Mass Support 6 Evasion (%) 50 Recoil Reduction 2 Item Schematics ----------------- None Robot Schematics ------------------ None Fabricated ------------ Nothing Repaired ---------- Nothing Studied --------- Autogun | -9/Materials | Hacked Alien Tech Used ----------------- None Achievements -------------- None Challenges ------------ None Game ------ Seed BraceVortexFirepult Manual? 0 Play Time 00:18:12 Cumulative 17.6 hours Start 2026.09.01 @ 11:26:17 End 2026.09.01 @ 11:48:15 Sessions 1 Manual Loads 0 Difficulty Rogue Special Mode None Game No. 39 Rogue 39 Adventurer 0 Explorer 0 Win Type - Total 0 Types 0/0/0/0/0/0/0/0/0/0 Lore% 10 Gallery% 13 Achievement% 12 Wizard Run 0 Options --------- Layout 1 ASCII 0 Keyboard 0 Movement Mouse Keybinds 0 Fullscreen 1 Font 32/SmallcapsGlow Map View 50x35 Zoom Use 0% Tactical HUD 1 Map Filters NONE Filters NONE Steam 1 RUN: cc616945-a0ac-4d4d-ba37-c4134bdf5bc4